[Event "Early-Titled-Tuesday-Blitz-December-26-2023"]
[Site "Chess.com"]
[Date "2023.12.26"]
[Round "10"]
[White "Flawless_Fighter"]
[Black "Dinosaurio_1975"]
[Result "0-1"]
[WhiteElo "2784"]
[BlackElo "2643"]
[TimeControl "180+1"]
[EndTime "9:56:12 PST"]
[Termination "Dinosaurio_1975 won by checkmate"]

1. e4 {[%clk 0:03:00.9]} 1... c6 {[%clk 0:02:59.5]} 2. d4 {[%clk 0:02:59.8]}
2... d5 {[%clk 0:03:00.4]} 3. exd5 {[%clk 0:03:00.7]} 3... cxd5 {[%clk
0:03:01.3]} 4. Bd3 {[%clk 0:03:01.1]} 4... Nc6 {[%clk 0:03:00.3]} 5. c3 {[%clk
0:03:01.6]} 5... Nf6 {[%clk 0:02:58.7]} 6. Bf4 {[%clk 0:03:00.6]} 6... Bg4
{[%clk 0:02:57.9]} 7. Qb3 {[%clk 0:03:00.9]} 7... e5 {[%clk 0:02:58.5]} 8. h3
{[%clk 0:02:59.1]} 8... exf4 {[%clk 0:02:46.2]} 9. hxg4 {[%clk 0:02:58.3]} 9...
Qe7+ {[%clk 0:02:29.5]} 10. Kf1 {[%clk 0:02:57.9]} 10... Nxg4 {[%clk 0:02:22.5]}
11. Nd2 {[%clk 0:02:51.9]} 11... Qd7 {[%clk 0:02:21.6]} 12. Re1+ {[%clk
0:02:45]} 12... Be7 {[%clk 0:02:21.8]} 13. Ngf3 {[%clk 0:02:41.9]} 13... g6
{[%clk 0:02:15.8]} 14. Ne5 {[%clk 0:01:48.9]} 14... Ngxe5 {[%clk 0:02:11.5]} 15.
dxe5 {[%clk 0:01:48.5]} 15... O-O-O {[%clk 0:01:58.3]} 16. Nf3 {[%clk
0:01:47.5]} 16... h5 {[%clk 0:01:46]} 17. Bb5 {[%clk 0:01:29.4]} 17... a6 {[%clk
0:01:44.5]} 18. Bd3 {[%clk 0:01:25.8]} 18... g5 {[%clk 0:01:37.5]} 19. Nd4
{[%clk 0:01:24.9]} 19... Nxd4 {[%clk 0:01:37.1]} 20. cxd4 {[%clk 0:01:25.8]}
20... Qe6 {[%clk 0:01:29.2]} 21. Rc1+ {[%clk 0:01:13.5]} 21... Kb8 {[%clk
0:01:29]} 22. a3 {[%clk 0:01:07.6]} 22... Rc8 {[%clk 0:01:26.2]} 23. Rc2 {[%clk
0:00:39.2]} 23... Rxc2 {[%clk 0:01:24.7]} 24. Qxc2 {[%clk 0:00:40.1]} 24... Rc8
{[%clk 0:01:23.7]} 25. Qd2 {[%clk 0:00:39]} 25... h4 {[%clk 0:01:15.1]} 26. f3
{[%clk 0:00:29.1]} 26... Qb6 {[%clk 0:01:08.9]} 27. Bf5 {[%clk 0:00:18.1]} 27...
Rc4 {[%clk 0:01:08.1]} 28. Ke2 {[%clk 0:00:12.6]} 28... Rxd4 {[%clk 0:01:03]}
29. Qc2 {[%clk 0:00:12.8]} 29... Rc4 {[%clk 0:01:02.9]} 30. Qd2 {[%clk 0:00:12]}
30... Bc5 {[%clk 0:00:46.7]} 31. Rd1 {[%clk 0:00:09.2]} 31... Be3 {[%clk
0:00:42.7]} 32. Qe1 {[%clk 0:00:04.2]} 32... Qxb2+ {[%clk 0:00:42.2]} 33. Kf1
{[%clk 0:00:04.4]} 33... d4 {[%clk 0:00:40.5]} 34. Bd3 {[%clk 0:00:03.8]} 34...
Rc3 {[%clk 0:00:38.1]} 35. Be4 {[%clk 0:00:04.2]} 35... Qxa3 {[%clk 0:00:32]}
36. Rb1 {[%clk 0:00:04.1]} 36... Rc1 {[%clk 0:00:29]} 37. Rxc1 {[%clk
0:00:02.2]} 37... Bxc1 {[%clk 0:00:22.5]} 38. Bd5 {[%clk 0:00:02.7]} 38... Be3
{[%clk 0:00:17.2]} 39. Bxf7 {[%clk 0:00:02.7]} 39... d3 {[%clk 0:00:15.7]} 40.
e6 {[%clk 0:00:01.6]} 40... d2 {[%clk 0:00:16]} 41. Qe2 {[%clk 0:00:01.6]} 41...
Qc1+ {[%clk 0:00:15.8]} 42. Qd1 {[%clk 0:00:01.5]} 42... Qxd1# {[%clk 0:00:16]}
0-1

[Event "Early-Titled-Tuesday-Blitz-December-26-2023"]
[Site "Chess.com"]
[Date "2023.12.26"]
[Round "10"]
[White "Zavgorodniy_Sergiy"]
[Black "Road2GM3000"]
[Result "1-0"]
[WhiteElo "2618"]
[BlackElo "2499"]
[TimeControl "180+1"]
[EndTime "9:56:12 PST"]
[Termination "Zavgorodniy_Sergiy won by resignation"]

1. d4 {[%clk 0:02:53.2]} 1... d5 {[%clk 0:03:00.2]} 2. c4 {[%clk 0:02:53.3]}
2... c6 {[%clk 0:03:01]} 3. e3 {[%clk 0:02:53.6]} 3... Nf6 {[%clk 0:03:01.8]} 4.
Bd3 {[%clk 0:02:53.6]} 4... a6 {[%clk 0:03:02.1]} 5. Nd2 {[%clk 0:02:53.4]} 5...
Bg4 {[%clk 0:03:02.5]} 6. Qc2 {[%clk 0:02:53.3]} 6... e6 {[%clk 0:03:02.5]} 7.
Ngf3 {[%clk 0:02:53.7]} 7... Nbd7 {[%clk 0:03:03]} 8. O-O {[%clk 0:02:54]} 8...
Bd6 {[%clk 0:03:03.7]} 9. b3 {[%clk 0:02:54.3]} 9... O-O {[%clk 0:03:04.3]} 10.
Bb2 {[%clk 0:02:54.6]} 10... Rc8 {[%clk 0:03:04.5]} 11. Ne5 {[%clk 0:02:54.7]}
11... Bh5 {[%clk 0:03:03.5]} 12. f4 {[%clk 0:02:52.2]} 12... Bg6 {[%clk
0:03:02.4]} 13. Nxg6 {[%clk 0:02:52.1]} 13... hxg6 {[%clk 0:03:03.2]} 14. Nf3
{[%clk 0:02:52.4]} 14... b5 {[%clk 0:02:57]} 15. Ne5 {[%clk 0:02:43.2]} 15...
bxc4 {[%clk 0:02:56]} 16. bxc4 {[%clk 0:02:43.1]} 16... c5 {[%clk 0:02:53.2]}
17. Qe2 {[%clk 0:02:40.3]} 17... cxd4 {[%clk 0:02:52]} 18. Bxd4 {[%clk
0:02:39.1]} 18... Bxe5 {[%clk 0:02:35.1]} 19. fxe5 {[%clk 0:02:38]} 19... dxc4
{[%clk 0:02:33.5]} 20. Bxc4 {[%clk 0:02:32.8]} 20... Ne4 {[%clk 0:02:28.3]} 21.
Bxa6 {[%clk 0:02:27]} 21... Ra8 {[%clk 0:02:23.5]} 22. Bb7 {[%clk 0:02:23.5]}
22... Ndc5 {[%clk 0:02:10.9]} 23. Bxa8 {[%clk 0:02:21.8]} 23... Qxa8 {[%clk
0:02:11.8]} 24. Rfc1 {[%clk 0:02:07.6]} 24... Na4 {[%clk 0:02:07.5]} 25. Rc7
{[%clk 0:01:58.8]} 25... Qa5 {[%clk 0:01:29.3]} 26. Ra7 {[%clk 0:01:39.1]} 26...
Qb4 {[%clk 0:01:23.6]} 27. a3 {[%clk 0:01:38.4]} 27... Qb3 {[%clk 0:01:20.3]}
28. Qd1 {[%clk 0:01:37.2]} 28... Qxd1+ {[%clk 0:01:14.8]} 29. Rxd1 {[%clk
0:01:38.1]} 29... Nac3 {[%clk 0:01:15.2]} 30. Bxc3 {[%clk 0:01:29.1]} 30... Nxc3
{[%clk 0:01:16.1]} 31. Rdd7 {[%clk 0:01:26.7]} 31... Nd5 {[%clk 0:01:15.5]} 32.
a4 {[%clk 0:01:19.5]} 32... Nxe3 {[%clk 0:01:09.6]} 33. a5 {[%clk 0:01:14.3]}
33... Nc4 {[%clk 0:01:10.2]} 34. a6 {[%clk 0:01:10.5]} 34... Nxe5 {[%clk
0:01:10.8]} 35. Rdc7 {[%clk 0:01:08.8]} 35... Rd8 {[%clk 0:01:10.4]} 36. Rab7
{[%clk 0:01:03.8]} 36... Rd1+ {[%clk 0:01:04.6]} 37. Kf2 {[%clk 0:01:03.5]}
37... Rd2+ {[%clk 0:01:05.1]} 38. Ke1 {[%clk 0:00:57.7]} 38... Rxg2 {[%clk
0:00:33.5]} 39. a7 {[%clk 0:00:56.6]} 39... Ra2 {[%clk 0:00:32.5]} 40. Rb8+
{[%clk 0:00:55.1]} 40... Kh7 {[%clk 0:00:33.2]} 41. a8=Q {[%clk 0:00:55.4]}
41... Rxa8 {[%clk 0:00:33.4]} 42. Rxa8 {[%clk 0:00:56.3]} 42... g5 {[%clk
0:00:33.3]} 43. Ke2 {[%clk 0:00:50.1]} 43... Kg6 {[%clk 0:00:32.9]} 44. Ra5
{[%clk 0:00:48.8]} 44... Ng4 {[%clk 0:00:29]} 45. h3 {[%clk 0:00:48.4]} 45...
Nh6 {[%clk 0:00:28.9]} 46. Kf3 {[%clk 0:00:44.6]} 46... Kf6 {[%clk 0:00:25.9]}
47. Rcc5 {[%clk 0:00:42]} 47... Nf5 {[%clk 0:00:23.6]} 48. Rxf5+ {[%clk
0:00:40.5]} 48... exf5 {[%clk 0:00:24.5]} 49. Kg3 {[%clk 0:00:39.2]} 49... Kg6
{[%clk 0:00:24.2]} 50. Ra6+ {[%clk 0:00:38.7]} 50... f6 {[%clk 0:00:24.3]} 51.
Rb6 {[%clk 0:00:39.1]} 51... Kh5 {[%clk 0:00:24]} 52. Rb5 {[%clk 0:00:37]} 52...
f4+ {[%clk 0:00:23.9]} 53. Kf3 {[%clk 0:00:33.4]} 53... Kh4 {[%clk 0:00:20.6]}
54. Rb7 {[%clk 0:00:32.4]} 54... Kxh3 {[%clk 0:00:11.3]} 55. Rxg7 {[%clk
0:00:32.2]} 55... Kh2 {[%clk 0:00:07.9]} 56. Rg6 {[%clk 0:00:31.7]} 1-0

[Event "Early-Titled-Tuesday-Blitz-December-26-2023"]
[Site "Chess.com"]
[Date "2023.12.26"]
[Round "10"]
[White "Navyblue1"]
[Black "elchacal664"]
[Result "1-0"]
[WhiteElo "2182"]
[BlackElo "2275"]
[TimeControl "180+1"]
[EndTime "9:56:12 PST"]
[Termination "Navyblue1 won by resignation"]

1. d4 {[%clk 0:03:00.9]} 1... c5 {[%clk 0:02:54]} 2. d5 {[%clk 0:02:59.1]} 2...
Nf6 {[%clk 0:02:54.6]} 3. Nc3 {[%clk 0:02:57]} 3... d6 {[%clk 0:02:54.9]} 4. e4
{[%clk 0:02:55.7]} 4... g6 {[%clk 0:02:55.4]} 5. Be2 {[%clk 0:02:53]} 5... Bg7
{[%clk 0:02:54.8]} 6. Nf3 {[%clk 0:02:53.4]} 6... O-O {[%clk 0:02:54]} 7. O-O
{[%clk 0:02:53]} 7... a6 {[%clk 0:02:52.8]} 8. a4 {[%clk 0:02:52.6]} 8... Bg4
{[%clk 0:02:46.7]} 9. Nd2 {[%clk 0:02:52.1]} 9... Bxe2 {[%clk 0:02:45.8]} 10.
Qxe2 {[%clk 0:02:52.1]} 10... Nbd7 {[%clk 0:02:44.8]} 11. Nc4 {[%clk 0:02:50.3]}
11... Nb6 {[%clk 0:02:39.1]} 12. Nxb6 {[%clk 0:02:43.3]} 12... Qxb6 {[%clk
0:02:38.8]} 13. e5 {[%clk 0:02:12.1]} 13... dxe5 {[%clk 0:01:55.3]} 14. Qxe5
{[%clk 0:02:08.3]} 14... Rad8 {[%clk 0:01:53.7]} 15. a5 {[%clk 0:01:45.1]} 15...
Qd6 {[%clk 0:01:42.4]} 16. Qxd6 {[%clk 0:01:40.4]} 16... Rxd6 {[%clk 0:01:34.7]}
17. Bf4 {[%clk 0:01:37.9]} 17... Rd7 {[%clk 0:01:34.2]} 18. Rfe1 {[%clk
0:01:18.9]} 18... Re8 {[%clk 0:01:10.3]} 19. Rad1 {[%clk 0:01:13.2]} 19... Rc8
{[%clk 0:00:53.4]} 20. h3 {[%clk 0:01:05.9]} 20... c4 {[%clk 0:00:51.6]} 21. d6
{[%clk 0:01:00.4]} 21... e6 {[%clk 0:00:49.4]} 22. Be5 {[%clk 0:00:38.2]} 22...
Ne8 {[%clk 0:00:39.9]} 23. Bxg7 {[%clk 0:00:34.7]} 23... Kxg7 {[%clk 0:00:40.8]}
24. Ne4 {[%clk 0:00:33.9]} 24... h6 {[%clk 0:00:37.7]} 25. Rd4 {[%clk
0:00:28.6]} 25... e5 {[%clk 0:00:27.2]} 26. Rd5 {[%clk 0:00:25.3]} 26... f5
{[%clk 0:00:25.6]} 27. Nc3 {[%clk 0:00:20.5]} 27... e4 {[%clk 0:00:24]} 28. f3
{[%clk 0:00:19.6]} 28... Nf6 {[%clk 0:00:18.2]} 29. Rd4 {[%clk 0:00:18.4]} 29...
exf3 {[%clk 0:00:17.8]} 30. gxf3 {[%clk 0:00:18.5]} 30... Rc6 {[%clk 0:00:17]}
31. Re6 {[%clk 0:00:17.2]} 31... Kf7 {[%clk 0:00:16.7]} 32. Re1 {[%clk
0:00:16.7]} 32... Rcxd6 {[%clk 0:00:16.6]} 33. Rxc4 {[%clk 0:00:17.1]} 33... Rd2
{[%clk 0:00:15.4]} 34. Re2 {[%clk 0:00:16.3]} 34... Rxe2 {[%clk 0:00:14.3]} 35.
Nxe2 {[%clk 0:00:17]} 35... Nd5 {[%clk 0:00:14.1]} 36. Kf2 {[%clk 0:00:17.1]}
36... Nf6 {[%clk 0:00:14]} 37. b4 {[%clk 0:00:16.9]} 37... Ke6 {[%clk
0:00:13.2]} 38. c3 {[%clk 0:00:17.1]} 38... Re7 {[%clk 0:00:12.9]} 39. Rd4
{[%clk 0:00:17]} 39... Kf7 {[%clk 0:00:12.7]} 40. Nf4 {[%clk 0:00:17.1]} 40...
g5 {[%clk 0:00:12.3]} 41. Nd5 {[%clk 0:00:17.4]} 41... Nxd5 {[%clk 0:00:12.4]}
42. Rxd5 {[%clk 0:00:18.3]} 42... Ke6 {[%clk 0:00:11.9]} 43. Rc5 {[%clk
0:00:18.5]} 43... Kd6 {[%clk 0:00:11.7]} 44. Rxf5 {[%clk 0:00:17.7]} 44... Rc7
{[%clk 0:00:11.1]} 45. Rf6+ {[%clk 0:00:17]} 45... Ke5 {[%clk 0:00:10.7]} 46.
Rxh6 {[%clk 0:00:17.1]} 46... Rxc3 {[%clk 0:00:11.3]} 47. Kg3 {[%clk 0:00:16.6]}
47... Rb3 {[%clk 0:00:10.6]} 48. Rb6 {[%clk 0:00:17.2]} 48... g4 {[%clk
0:00:08.7]} 49. hxg4 {[%clk 0:00:17]} 1-0

[Event "Early-Titled-Tuesday-Blitz-December-26-2023"]
[Site "Chess.com"]
[Date "2023.12.26"]
[Round "10"]
[White "Schachmalanders"]
[Black "GMJustin"]
[Result "1-0"]
[WhiteElo "2377"]
[BlackElo "2241"]
[TimeControl "180+1"]
[EndTime "9:56:15 PST"]
[Termination "Schachmalanders won on time"]

1. e4 {[%clk 0:03:00.9]} 1... c5 {[%clk 0:02:42.6]} 2. c3 {[%clk 0:03:00]} 2...
d5 {[%clk 0:02:41]} 3. exd5 {[%clk 0:02:59.8]} 3... Qxd5 {[%clk 0:02:40.3]} 4.
d4 {[%clk 0:03:00.4]} 4... e5 {[%clk 0:02:39.3]} 5. dxe5 {[%clk 0:02:58.5]} 5...
Qxd1+ {[%clk 0:02:20.4]} 6. Kxd1 {[%clk 0:02:59.4]} 6... Nc6 {[%clk 0:02:20.1]}
7. f4 {[%clk 0:02:57.1]} 7... Bf5 {[%clk 0:02:09.5]} 8. Nf3 {[%clk 0:02:54.5]}
8... O-O-O+ {[%clk 0:02:06.2]} 9. Ke1 {[%clk 0:02:53.5]} 9... f6 {[%clk
0:02:03.6]} 10. Nbd2 {[%clk 0:02:46.8]} 10... fxe5 {[%clk 0:02:00.5]} 11. fxe5
{[%clk 0:02:46.1]} 11... Nge7 {[%clk 0:01:51.9]} 12. Nc4 {[%clk 0:02:28]} 12...
Ng6 {[%clk 0:01:50.2]} 13. a4 {[%clk 0:02:25.5]} 13... Re8 {[%clk 0:01:31.3]}
14. Kf2 {[%clk 0:02:19]} 14... Ngxe5 {[%clk 0:01:26.7]} 15. Ncxe5 {[%clk
0:02:19.3]} 15... Nxe5 {[%clk 0:01:26.6]} 16. Nxe5 {[%clk 0:02:18.4]} 16... Rxe5
{[%clk 0:01:26.1]} 17. Bf4 {[%clk 0:02:19]} 17... Re4 {[%clk 0:01:20.6]} 18. g3
{[%clk 0:02:17.9]} 18... Be7 {[%clk 0:01:18.3]} 19. Bg2 {[%clk 0:02:03.1]} 19...
Re6 {[%clk 0:01:15.9]} 20. Rhe1 {[%clk 0:01:56.6]} 20... Re8 {[%clk 0:01:06.2]}
21. Bd5 {[%clk 0:01:51.4]} 21... Rxe1 {[%clk 0:00:33.9]} 22. Rxe1 {[%clk
0:01:49.9]} 22... Rd8 {[%clk 0:00:33]} 23. Bxb7+ {[%clk 0:01:46.1]} 23... Kxb7
{[%clk 0:00:31.6]} 24. Rxe7+ {[%clk 0:01:46.8]} 24... Rd7 {[%clk 0:00:31.4]} 25.
Re8 {[%clk 0:01:42.8]} 25... c4 {[%clk 0:00:28.4]} 26. Rb8+ {[%clk 0:01:38.8]}
26... Kc6 {[%clk 0:00:23.9]} 27. Be3 {[%clk 0:01:35.3]} 27... Bd3 {[%clk
0:00:15.2]} 28. Rf8 {[%clk 0:01:27.1]} 28... Rb7 {[%clk 0:00:13.9]} 29. Bc1
{[%clk 0:01:22]} 29... Re7 {[%clk 0:00:13.2]} 30. Be3 {[%clk 0:00:59.3]} 30...
Rb7 {[%clk 0:00:12.6]} 31. Bd4 {[%clk 0:00:42.5]} 31... Rxb2+ {[%clk 0:00:11.9]}
32. Kg1 {[%clk 0:00:43.2]} 32... Rb1+ {[%clk 0:00:11.1]} 33. Kg2 {[%clk
0:00:43.6]} 33... Rb2+ {[%clk 0:00:11.2]} 34. Kh3 {[%clk 0:00:43.8]} 34... g6
{[%clk 0:00:07.8]} 35. Bxa7 {[%clk 0:00:43.1]} 35... Ra2 {[%clk 0:00:07.2]} 36.
Bd4 {[%clk 0:00:41.8]} 36... Rxa4 {[%clk 0:00:06.6]} 37. Rf7 {[%clk 0:00:39.8]}
37... h5 {[%clk 0:00:06.2]} 38. Kh4 {[%clk 0:00:37.4]} 38... Ra2 {[%clk
0:00:05.5]} 39. h3 {[%clk 0:00:37.3]} 39... Kd5 {[%clk 0:00:05.4]} 40. Rf6
{[%clk 0:00:31.7]} 40... Rh2 {[%clk 0:00:04.7]} 41. g4 {[%clk 0:00:31.1]} 41...
hxg4 {[%clk 0:00:04.2]} 42. Kxg4 {[%clk 0:00:31.3]} 42... Bf5+ {[%clk
0:00:04.3]} 43. Kg5 {[%clk 0:00:28.3]} 43... Rxh3 {[%clk 0:00:04.3]} 44. Rf8
{[%clk 0:00:28.5]} 44... Rd3 {[%clk 0:00:04.2]} 45. Rd8+ {[%clk 0:00:28.6]}
45... Ke4 {[%clk 0:00:04.5]} 46. Re8+ {[%clk 0:00:28.5]} 46... Kf3 {[%clk
0:00:04.8]} 47. Re5 {[%clk 0:00:25.6]} 47... Rd2 {[%clk 0:00:04.6]} 48. Rc5
{[%clk 0:00:24.7]} 48... Rg2+ {[%clk 0:00:04.3]} 49. Kf6 {[%clk 0:00:25.2]}
49... Bd3 {[%clk 0:00:03.8]} 50. Rg5 {[%clk 0:00:23.6]} 1-0

[Event "Early-Titled-Tuesday-Blitz-December-26-2023"]
[Site "Chess.com"]
[Date "2023.12.26"]
[Round "10"]
[White "AsaHoffmann"]
[Black "DrCeltic"]
[Result "1-0"]
[WhiteElo "2355"]
[BlackElo "2495"]
[TimeControl "180+1"]
[EndTime "9:56:17 PST"]
[Termination "AsaHoffmann won by resignation"]

1. d4 {[%clk 0:02:46.9]} 1... Nf6 {[%clk 0:02:59.2]} 2. Bg5 {[%clk 0:02:43.3]}
2... Ne4 {[%clk 0:02:57.9]} 3. Bf4 {[%clk 0:02:40.1]} 3... d5 {[%clk 0:02:58]}
4. f3 {[%clk 0:02:40.1]} 4... Nf6 {[%clk 0:02:58]} 5. e4 {[%clk 0:02:40.1]} 5...
dxe4 {[%clk 0:02:58.4]} 6. Nc3 {[%clk 0:02:40]} 6... e6 {[%clk 0:02:56.6]} 7.
fxe4 {[%clk 0:02:39.6]} 7... Bb4 {[%clk 0:02:56]} 8. e5 {[%clk 0:02:39.2]} 8...
Nd5 {[%clk 0:02:55]} 9. Bd2 {[%clk 0:02:39.2]} 9... Bxc3 {[%clk 0:02:52.4]} 10.
bxc3 {[%clk 0:02:38.8]} 10... c5 {[%clk 0:02:37.6]} 11. Qg4 {[%clk 0:02:36.7]}
11... g6 {[%clk 0:02:33.5]} 12. Nf3 {[%clk 0:02:36.2]} 12... cxd4 {[%clk
0:02:33.7]} 13. cxd4 {[%clk 0:02:35.8]} 13... b6 {[%clk 0:02:29.8]} 14. h4
{[%clk 0:02:34.7]} 14... h5 {[%clk 0:02:26.7]} 15. Qg5 {[%clk 0:02:28.5]} 15...
Qxg5 {[%clk 0:02:19.5]} 16. Bxg5 {[%clk 0:02:25.1]} 16... Ba6 {[%clk 0:02:15.2]}
17. Bxa6 {[%clk 0:02:15.9]} 17... Nxa6 {[%clk 0:02:16.1]} 18. c4 {[%clk
0:02:15.7]} 18... Ndb4 {[%clk 0:02:13.3]} 19. Kd2 {[%clk 0:02:15.6]} 19... Rc8
{[%clk 0:02:01.5]} 20. Rhc1 {[%clk 0:02:14.6]} 20... Nc6 {[%clk 0:01:59.6]} 21.
d5 {[%clk 0:02:04.9]} 21... Na5 {[%clk 0:01:56]} 22. Kd3 {[%clk 0:02:03.4]}
22... Nc5+ {[%clk 0:01:46.4]} 23. Kd4 {[%clk 0:02:02]} 23... O-O {[%clk
0:01:39.2]} 24. Be7 {[%clk 0:01:48.6]} 24... Rfe8 {[%clk 0:01:26.7]} 25. Bxc5
{[%clk 0:01:48]} 25... Rxc5 {[%clk 0:01:22.3]} 26. Nd2 {[%clk 0:01:47.6]} 26...
Rd8 {[%clk 0:01:17.3]} 27. Ne4 {[%clk 0:01:37.5]} 27... Rcc8 {[%clk 0:00:31.4]}
28. Nd6 {[%clk 0:01:24.2]} 28... Rc7 {[%clk 0:00:27.3]} 29. Rab1 {[%clk
0:01:16.5]} 29... Rcd7 {[%clk 0:00:25.9]} 30. Ne4 {[%clk 0:01:00.4]} 30... Nc6+
{[%clk 0:00:24.5]} 31. Ke3 {[%clk 0:00:59.4]} 31... Kg7 {[%clk 0:00:22.4]} 32.
dxc6 {[%clk 0:00:58]} 32... Rd3+ {[%clk 0:00:22.7]} 33. Kf4 {[%clk 0:00:55]}
33... Rc8 {[%clk 0:00:23.2]} 34. Rd1 {[%clk 0:00:50.9]} 34... Rxd1 {[%clk
0:00:23.5]} 35. Rxd1 {[%clk 0:00:50.7]} 35... Rxc6 {[%clk 0:00:24.4]} 36. Nd6
{[%clk 0:00:48.1]} 36... a6 {[%clk 0:00:23.9]} 37. a4 {[%clk 0:00:47.7]} 37...
Rc5 {[%clk 0:00:22.7]} 38. Ke4 {[%clk 0:00:46.8]} 38... Ra5 {[%clk 0:00:22.2]}
39. Rf1 {[%clk 0:00:46.6]} 39... f5+ {[%clk 0:00:18.1]} 40. exf6+ {[%clk
0:00:46.3]} 40... Kf8 {[%clk 0:00:19]} 41. Ra1 {[%clk 0:00:37.5]} 41... b5
{[%clk 0:00:17.4]} 42. cxb5 {[%clk 0:00:36.8]} 42... axb5 {[%clk 0:00:18.3]} 43.
Nxb5 {[%clk 0:00:36.9]} 43... Kf7 {[%clk 0:00:18.9]} 44. Ke5 {[%clk 0:00:33.4]}
44... Ra8 {[%clk 0:00:18.5]} 45. Nd6+ {[%clk 0:00:30.9]} 45... Kf8 {[%clk
0:00:18.2]} 46. Kxe6 {[%clk 0:00:30.6]} 46... g5 {[%clk 0:00:19.1]} 47. hxg5
{[%clk 0:00:30.4]} 47... h4 {[%clk 0:00:19.6]} 48. g6 {[%clk 0:00:30]} 48... h3
{[%clk 0:00:20]} 49. gxh3 {[%clk 0:00:27.5]} 49... Kg8 {[%clk 0:00:20.4]} 50.
Rc1 {[%clk 0:00:27.3]} 50... Rd8 {[%clk 0:00:15.1]} 51. Rc8 {[%clk 0:00:25.8]}
51... Rxc8 {[%clk 0:00:16]} 52. Nxc8 {[%clk 0:00:25.7]} 52... Kh8 {[%clk
0:00:16.9]} 53. Ke7 {[%clk 0:00:25.1]} 53... Kg8 {[%clk 0:00:17]} 54. f7+ {[%clk
0:00:25.1]} 1-0

[Event "Early-Titled-Tuesday-Blitz-December-26-2023"]
[Site "Chess.com"]
[Date "2023.12.26"]
[Round "10"]
[White "marvinguevara"]
[Black "ploxoi"]
[Result "0-1"]
[WhiteElo "2233"]
[BlackElo "2500"]
[TimeControl "180+1"]
[EndTime "9:56:17 PST"]
[Termination "ploxoi won by resignation"]

1. e4 {[%clk 0:03:00.9]} 1... c5 {[%clk 0:02:59.5]} 2. d4 {[%clk 0:03:00.3]}
2... cxd4 {[%clk 0:02:59.5]} 3. c3 {[%clk 0:02:59.8]} 3... dxc3 {[%clk
0:03:00.4]} 4. Bc4 {[%clk 0:02:59]} 4... Nc6 {[%clk 0:02:59.8]} 5. Nf3 {[%clk
0:02:58.3]} 5... e6 {[%clk 0:02:59.2]} 6. O-O {[%clk 0:02:57.2]} 6... d6 {[%clk
0:02:53.5]} 7. Qe2 {[%clk 0:02:47.2]} 7... Nf6 {[%clk 0:02:52.4]} 8. Nxc3 {[%clk
0:02:45.7]} 8... Be7 {[%clk 0:02:52.3]} 9. Rd1 {[%clk 0:02:45.2]} 9... e5 {[%clk
0:02:46.9]} 10. Bg5 {[%clk 0:02:42.4]} 10... Be6 {[%clk 0:02:41.2]} 11. Bxf6
{[%clk 0:02:31.7]} 11... Bxf6 {[%clk 0:02:37.3]} 12. Bd5 {[%clk 0:02:27.2]}
12... O-O {[%clk 0:02:31.8]} 13. Rac1 {[%clk 0:02:24.5]} 13... Rc8 {[%clk
0:02:31.3]} 14. Nb5 {[%clk 0:02:14.9]} 14... Nd4 {[%clk 0:02:03.8]} 15. Nfxd4
{[%clk 0:02:03.5]} 15... Rxc1 {[%clk 0:02:02.1]} 16. Rxc1 {[%clk 0:01:59]} 16...
exd4 {[%clk 0:02:01.5]} 17. Nxa7 {[%clk 0:01:50.6]} 17... Bxd5 {[%clk 0:01:44]}
18. exd5 {[%clk 0:01:50.2]} 18... Qa5 {[%clk 0:01:44.7]} 19. Nb5 {[%clk
0:01:45.4]} 19... Qxa2 {[%clk 0:01:43.1]} 20. Nxd6 {[%clk 0:01:18.5]} 20... Qxd5
{[%clk 0:01:40.2]} 21. Ne4 {[%clk 0:01:17.7]} 21... Be7 {[%clk 0:01:27.2]} 22.
Qd3 {[%clk 0:01:13.5]} 22... Rd8 {[%clk 0:01:18.1]} 23. h3 {[%clk 0:01:08.7]}
23... h6 {[%clk 0:01:08.6]} 24. Rc7 {[%clk 0:01:05.5]} 24... Bf8 {[%clk
0:01:06.7]} 25. Rc4 {[%clk 0:00:45.7]} 25... Qb5 {[%clk 0:00:55.9]} 26. b3
{[%clk 0:00:42]} 26... Qa6 {[%clk 0:00:46.8]} 27. Kh2 {[%clk 0:00:38.5]} 27...
h5 {[%clk 0:00:37.2]} 28. g3 {[%clk 0:00:38.2]} 28... h4 {[%clk 0:00:34.5]} 29.
Kg2 {[%clk 0:00:33.3]} 29... hxg3 {[%clk 0:00:34.2]} 30. fxg3 {[%clk 0:00:32.1]}
30... Qa2+ {[%clk 0:00:30.9]} 31. Kf3 {[%clk 0:00:31]} 31... Qa1 {[%clk
0:00:29.1]} 32. Ng5 {[%clk 0:00:26.8]} 32... Qh1+ {[%clk 0:00:25.6]} 33. Kg4
{[%clk 0:00:26.2]} 33... g6 {[%clk 0:00:26.2]} 34. Rc7 {[%clk 0:00:21.2]} 34...
f5+ {[%clk 0:00:12.7]} 35. Kh4 {[%clk 0:00:16.8]} 35... Qd5 {[%clk 0:00:13.3]}
36. Nf7 {[%clk 0:00:08.3]} 36... Rd7 {[%clk 0:00:13.7]} 37. Rxd7 {[%clk
0:00:07.1]} 37... Qxd7 {[%clk 0:00:14.6]} 38. Ng5 {[%clk 0:00:06.5]} 38... Be7
{[%clk 0:00:14.5]} 39. Qc4+ {[%clk 0:00:06.3]} 39... Kh8 {[%clk 0:00:12.6]} 40.
Qd3 {[%clk 0:00:04.8]} 40... Qd8 {[%clk 0:00:12.8]} 41. Qd2 {[%clk 0:00:04.2]}
41... Bxg5+ {[%clk 0:00:13.4]} 42. Qxg5 {[%clk 0:00:03.1]} 42... Qxg5+ {[%clk
0:00:14.3]} 43. Kxg5 {[%clk 0:00:03.6]} 43... d3 {[%clk 0:00:15.2]} 44. Kxg6
{[%clk 0:00:04]} 44... d2 {[%clk 0:00:16.1]} 45. Kxf5 {[%clk 0:00:04.4]} 45...
d1=Q {[%clk 0:00:17]} 0-1